[Event "VII Totalizator Sportowy 2022"]
[Site "Bydgoszcz"]
[Date "2022.07.03"]
[Round "9.15"]
[White "Laux, Dominik"]
[Black "Stolarczyk, Adam"]
[Result "1-0"]
[ECO "B11"]
[WhiteElo "2263"]
[BlackElo "2125"]
[Annotator "TA"]
[PlyCount "69"]
[EventDate "2022.06.25"]
[EventType "swiss"]
[EventCountry "POL"]
[SourceTitle "playchess.com"]
[Source "ChessBase"]
[SourceQuality "1"]
[TimeControl "40/5400+30:1800+30"]

{[%evp 19,69,180,172,98,95,72,79,85,114,87,78,71,80,65,80,44,95,89,180,175,182,178,183,180,214,221,212,200,182,179,406,200,257,278,414,391,574,563,671,669,671,670,630,590,582,577,621,531,552,541,588,509]} 1. e4 {[%emt 0:00:14]} c6 {[%emt 0:00:10]} 2. Nf3 {[%emt 0:00:41]} d5 {[%emt 0:00:15]} 3. Nc3 {[%emt 0:00:20][%cal Bb1c3,Bc3e4,Be4g3][%mdl 32]} Bg4 {[%emt 0:03:52]} 4. h3 {[%emt 0:00:07]} dxe4 {[%emt 0:01:06]} 5. Nxe4 {[%emt 0:03:41]} Bh5 {[%emt 0:01:09]} 6. Ng3 {[%emt 0:01:32]} Bg6 {[%emt 0:00:23]} 7. h4 {[%emt 0:00:31]} h6 {[%emt 0:03:14]} 8. Ne5 {[%emt 0:00:10]} Bh7 {[%emt 0:00:14]} 9. Qh5 {[%emt 0:00:06]} g6 {[%emt 0:02:45]} 10. Qf3 {[%emt 0:03:11]} Nf6 {[%emt 0:00:41] [#]} 11. Bc4 {[%emt 0:00:59] B11: Caro-Kann: Two Knights Variation.} (11. Qb3 $1 $18 {[%csl Ge5][%cal Rb3f7]} Nd5 12. Qxb7) 11... e6 $16 {[%emt 0:01:31]} 12. Qe2 {[%emt 0:01:41][%cal Oe5f7] [#] White is much more active.} (12. Ne4 {looks sharper.} Nbd7 13. d4 Qe7 14. Nxf6+ Qxf6 15. Bf4) 12... Qc7 $146 {[%emt 0:08:13]} ({Predecessor:} 12... Qd6 13. b3 Bg7 14. Bb2 Nd5 15. Bxd5 cxd5 16. Nc4 dxc4 17. Bxg7 Rg8 18. Ne4 Qe7 19. Nf6+ Kd8 20. Nxg8 Bxg8 21. Bxh6 cxb3 22. axb3 Qf6 23. Bg5 {1-0 (22) Tomulic,T (2010)-Haidinger,E (1409) Rijeka 2015}) 13. d4 {[%emt 0:01:50][%cal Bd2d4,Bd4e5][%mdl 32] White is better.} Nd5 {[%emt 0:01:48] Against Bf4} 14. Bd2 {[%emt 0:08:12]} Nd7 {[%emt 0:04:21]} 15. O-O-O {[%emt 0:05:33]} Nxe5 {[%emt 0:03:53]} 16. dxe5 {[%emt 0:01:35]} O-O-O {[%emt 0:02:11]} 17. Bb3 {[%emt 0:11:44]} Bg7 {[%emt 0:03:15]} (17... c5 $14) 18. f4 {[%emt 0:03:42] White leaves nothing to chance now.} Rhe8 {[%emt 0:12:17]} (18... Kb8 $16) 19. Ne4 $18 {[%emt 0:08:51] c4 is the strong threat.} Kb8 {[%emt 0:04:28]} 20. c4 {[%emt 0:03:57]} Ne7 {[%emt 0:03:28]} 21. Bb4 {[%emt 0:04:32] [#] Strongly threatening Bd6.} Ka8 {[%emt 0:03:54]} 22. Rxd8+ {[%emt 0:09:32]} Rxd8 {[%emt 0:00:57]} 23. Bd6 {[%emt 0:01:13]} Qd7 {[%emt 0:00:35]} 24. g4 {[%emt 0:02:22][%cal Bg2g4,Bg4g5][%mdl 32] Prevents Nf5.} Nc8 $2 {[%emt 0:02:31]} (24... h5 {might work better.} 25. Ng5 Bg8 26. gxh5 Nf5) 25. Rd1 {[%emt 0:05:36]} (25. Nc5 $142 Qe8 26. Bc7) 25... Qe8 {[%emt 0:03:54]} 26. g5 {[%emt 0:01:14]} h5 {[%emt 0:02:35]} (26... hxg5 $142 27. hxg5 Ne7) 27. Qe1 {[%emt 0:03:29]} Bg8 {[%emt 0:01:30]} (27... Nxd6 {was necessary.} 28. Nxd6 (28. Rxd6 Rxd6 29. exd6 Qd7 $16) 28... Qf8) 28. Qa5 {[%emt 0:04:58] And now Qc7 would win. White is clearly winning.} Bh7 {[%emt 0:01:07]} 29. Qc7 {[%emt 0:01:37][%csl Gd6][%cal Rc7b8]} Nxd6 {[%emt 0:02:09]} 30. Nxd6 {[%emt 0:00:07][%csl Gd6][%cal Rc7b7]} Qd7 {[%emt 0:00:29]} 31. Nxf7 {[%emt 0:02:11]} Qxc7 {[%emt 0:00:12]} 32. Rxd8+ {[%emt 0:00:06]} Qb8 {[%emt 0:01:01]} 33. Bc2 {[%emt 0:04:00]} Bf8 {[%emt 0:01:30]} 34. Kd2 {[%emt 0:00:31]} Bc5 {[%emt 0:01:21]} 35. Ke2 {[%emt 0:00:38] Weighted Error Value: White=0.21 (precise) /Black=0.49} 1-0

[Event "VII Totalizator Sportowy 2022"]
[Site "Bydgoszcz"]
[Date "2022.07.03"]
[Round "9.16"]
[White "Dzhuguryan, Tygran"]
[Black "Lambrecht, Tomasz"]
[Result "1-0"]
[ECO "D94"]
[WhiteElo "2203"]
[BlackElo "1956"]
[Annotator "RC"]
[PlyCount "91"]
[EventDate "2022.06.25"]
[EventType "swiss"]
[EventCountry "POL"]
[SourceTitle "playchess.com"]
[Source "ChessBase"]
[SourceQuality "1"]
[TimeControl "40/5400+30:1800+30"]

1. d4 {[%emt 0:00:05]} Nf6 {[%emt 0:02:19]} 2. c4 {[%emt 0:00:10]} g6 {[%emt 0:00:15]} 3. Nc3 {[%emt 0:00:10]} d5 {[%emt 0:00:09]} 4. e3 {[%emt 0:02:11]} Bg7 {[%emt 0:00:38]} 5. Nf3 {[%emt 0:00:13]} O-O {[%emt 0:01:46]} 6. Bd2 {[%emt 0:04:46]} c6 {[%emt 0:10:26]} 7. b4 {[%emt 0:05:32]} Bg4 {[%emt 0:01:30]} 8. h3 {[%emt 0:00:58]} Bxf3 {[%emt 0:00:09]} 9. Qxf3 {[%emt 0:00:03]} e6 {[%emt 0:00:18]} 10. cxd5 {[%emt 0:01:37]} cxd5 {[%emt 0:00:30]} 11. Bd3 {[%emt 0:00:25]} Nc6 {[%emt 0:00:21]} 12. b5 {[%emt 0:01:48]} Ne7 {[%emt 0:05:16]} 13. O-O {[%emt 0:00:09]} Qd7 {[%emt 0:00:15]} 14. Na4 {[%emt 0:02:58]} b6 {[%emt 0:00:12]} 15. Bb4 {[%emt 0:01:34]} Rfc8 {[%emt 0:00:31]} 16. Rfc1 {[%emt 0:00:03]} Rxc1+ {[%emt 0:00:52]} 17. Rxc1 {[%emt 0:00:01]} Rc8 {[%emt 0:00:08]} 18. Qd1 {[%emt 0:00:05]} Bf8 {[%emt 0:00:58]} 19. Rxc8 {[%emt 0:13:56]} Nxc8 {[%emt 0:02:38]} 20. Bxf8 {[%emt 0:03:11]} Kxf8 {[%emt 0:00:25]} 21. Nb2 {[%emt 0:00:18]} Nd6 {[%emt 0:01:07]} 22. a4 {[%emt 0:00:06]} Qc7 {[%emt 0:00:42]} 23. Qc2 {[%emt 0:00:02]} Qxc2 {[%emt 0:11:35]} 24. Bxc2 {[%emt 0:00:03]} Ke7 {[%emt 0:01:19]} 25. Nd3 {[%emt 0:00:25]} Nc4 {[%emt 0:01:54]} 26. Nb4 {[%emt 0:00:50]} Na5 {[%emt 0:00:22]} 27. Kf1 {[%emt 0:01:22]} Ne8 {[%emt 0:02:29]} 28. Ke2 {[%emt 0:01:37]} Kd6 {[%emt 0:02:27]} 29. e4 {[%emt 0:09:11]} Nc7 {[%emt 0:02:02]} 30. e5+ {[%emt 0:00:18]} Ke7 {[%emt 0:02:38]} 31. h4 {[%emt 0:02:33]} Ne8 {[%emt 0:19:37]} 32. h5 {[%emt 0:03:14]} Kf8 {[%emt 0:05:05]} 33. h6 {[%emt 0:07:04]} Nc7 {[%emt 0:04:30]} 34. Ke3 {[%emt 0:00:19]} f5 {[%emt 0:14:11]} 35. exf6 {[%emt 0:01:54]} Kf7 {[%emt 0:00:35]} 36. Kf4 {[%emt 0:00:24]} Kxf6 {[%emt 0:00:01]} 37. g4 {[%emt 0:00:29]} Nc4 {[%emt 0:01:17]} 38. g5+ {[%emt 0:00:26]} Kf7 {[%emt 0:00:05]} 39. Nc6 {[%emt 0:06:59]} a5 {[%emt 0:00:13]} 40. Ne5+ {[%emt 0:00:00]} Nxe5 {[%emt 0:00:00]} 41. Kxe5 {[%emt 0:04:44]} Ne8 {[%emt 0:02:36]} 42. Bd1 {[%emt 0:06:22]} Ke7 {[%emt 0:01:36]} 43. Bg4 {[%emt 0:00:03]} Nd6 {[%emt 0:01:27]} 44. Bxe6 {[%emt 0:00:04]} Ne4 {[%emt 0:03:02]} 45. f4 {[%emt 0:01:46]} Nc3 {[%emt 0:00:37]} 46. f5 {[%emt 0:00:26]} 1-0

[Event "VII Totalizator Sportowy 2022"]
[Site "Bydgoszcz"]
[Date "2022.07.03"]
[Round "9.17"]
[White "Paprocki, Jaroslaw"]
[Black "Ratajczak, Hubert"]
[Result "1/2-1/2"]
[ECO "A48"]
[WhiteElo "2165"]
[BlackElo "1899"]
[Annotator "RC"]
[PlyCount "103"]
[EventDate "2022.06.25"]
[EventType "swiss"]
[EventCountry "POL"]
[SourceTitle "playchess.com"]
[Source "ChessBase"]
[SourceQuality "1"]
[TimeControl "40/5400+30:1800+30"]

1. c3 {[%emt 0:00:04]} Nf6 {[%emt 0:00:22]} 2. d4 {[%emt 0:00:25]} g6 {[%emt 0:00:36]} 3. Bf4 {[%emt 0:00:57]} Bg7 {[%emt 0:00:27]} 4. h3 {[%emt 0:00:12]} O-O {[%emt 0:00:19]} 5. e3 {[%emt 0:00:05]} d6 {[%emt 0:00:04]} 6. Nf3 {[%emt 0:00:21]} b6 {[%emt 0:00:09]} 7. Nbd2 {[%emt 0:03:47]} Bb7 {[%emt 0:00:12]} 8. Qc2 {[%emt 0:00:21]} Nbd7 {[%emt 0:03:18]} 9. Bh2 {[%emt 0:00:28]} c5 {[%emt 0:00:55]} 10. Be2 {[%emt 0:01:28]} Qc7 {[%emt 0:04:58]} 11. O-O {[%emt 0:02:12]} Qc6 {[%emt 0:03:28]} 12. a4 {[%emt 0:02:05]} a6 {[%emt 0:00:59]} 13. Nc4 {[%emt 0:04:58]} Ne4 {[%emt 0:08:27]} 14. Rfd1 {[%emt 0:02:05]} Qd5 {[%emt 0:05:08]} 15. Rac1 {[%emt 0:10:56]} Rfc8 {[%emt 0:04:37]} 16. dxc5 {[%emt 0:04:54]} Qxc5 {[%emt 0:00:21]} 17. Ncd2 {[%emt 0:00:55]} Nxd2 {[%emt 0:03:24]} 18. Nxd2 {[%emt 0:03:12]} Ne5 {[%emt 0:03:00]} 19. Bf4 {[%emt 0:04:15]} Qc6 {[%emt 0:05:57]} 20. Bf1 {[%emt 0:03:59]} Nd7 {[%emt 0:07:52]} 21. Ra1 {[%emt 0:06:29]} e5 {[%emt 0:01:43]} 22. Bg3 {[%emt 0:00:43]} d5 {[%emt 0:03:20]} 23. Qb1 {[%emt 0:05:41]} Nc5 {[%emt 0:07:41]} 24. c4 {[%emt 0:07:27]} d4 {[%emt 0:01:27]} 25. exd4 {[%emt 0:00:48]} exd4 {[%emt 0:00:09]} 26. Nf3 {[%emt 0:00:47]} Ne6 {[%emt 0:02:39]} 27. Ne5 {[%emt 0:02:46]} Qe4 {[%emt 0:04:14]} 28. Nd7 {[%emt 0:02:32]} Qc6 {[%emt 0:00:10]} 29. Ne5 {[%emt 0:00:51]} Qe4 {[%emt 0:00:21]} 30. Qxe4 {[%emt 0:06:42]} Bxe4 {[%emt 0:00:01]} 31. Nd7 {[%emt 0:00:27]} Rc6 {[%emt 0:05:10]} 32. b4 {[%emt 0:01:46]} d3 {[%emt 0:06:30]} 33. Ra3 {[%emt 0:03:08]} Ra7 {[%emt 0:05:00]} 34. b5 {[%emt 0:04:13]} axb5 35. cxb5 {[%emt 0:00:20]} Rc3 {[%emt 0:00:08]} 36. Rxc3 {[%emt 0:01:24]} Bxc3 {[%emt 0:00:01]} 37. Be5 {[%emt 0:04:36]} Rxd7 {[%emt 0:01:58]} 38. Bxc3 {[%emt 0:00:05]} Nc5 {[%emt 0:00:11]} 39. a5 {[%emt 0:01:37]} bxa5 {[%emt 0:00:30]} 40. f3 {[%emt 0:00:00]} Bf5 {[%emt 0:00:00]} 41. Re1 {[%emt 0:08:34]} Be6 {[%emt 0:04:20]} 42. Bxa5 {[%emt 0:01:07]} Rb7 {[%emt 0:02:03]} 43. Bb4 {[%emt 0:06:50]} Rxb5 {[%emt 0:00:05]} 44. Bxc5 {[%emt 0:00:06]} Rxc5 {[%emt 0:00:05]} 45. Bxd3 {[%emt 0:00:10]} g5 {[%emt 0:01:19]} 46. Kf2 {[%emt 0:01:39]} h5 {[%emt 0:01:05]} 47. h4 {[%emt 0:05:05]} gxh4 {[%emt 0:01:23]} 48. Rh1 {[%emt 0:00:04]} h3 {[%emt 0:01:00]} 49. gxh3 {[%emt 0:00:07]} h4 {[%emt 0:03:31]} 50. Ra1 {[%emt 0:00:49]} Bxh3 {[%emt 0:00:23]} 51. Rh1 {[%emt 0:00:20]} Be6 {[%emt 0:00:34]} 52. Rxh4 {[%emt 0:00:12]} 1/2-1/2

[Event "VII Totalizator Sportowy 2022"]
[Site "Bydgoszcz"]
[Date "2022.07.03"]
[Round "9.18"]
[White "Syrkiewicz, Michal"]
[Black "Rog, Bartlomiej"]
[Result "1-0"]
[ECO "A10"]
[WhiteElo "2000"]
[BlackElo "2055"]
[Annotator "NA RC"]
[PlyCount "89"]
[EventDate "2022.06.25"]
[EventType "swiss"]
[EventCountry "POL"]
[SourceTitle "playchess.com"]
[Source "ChessBase"]
[SourceQuality "1"]
[TimeControl "40/5400+30:1800+30"]

1. c4 {[%emt 0:00:02]} d6 {[%emt 0:00:23]} 2. g3 {[%emt 0:00:20]} e5 {[%emt 0:00:16]} 3. Bg2 {[%emt 0:00:35]} f5 {[%emt 0:00:11]} 4. e3 {[%emt 0:00:53]} Nf6 {[%emt 0:04:09]} 5. Nc3 {[%emt 0:01:50]} Be7 {[%emt 0:00:26]} 6. d3 {[%emt 0:00:42]} O-O {[%emt 0:00:46]} 7. Nge2 {[%emt 0:00:18]} c6 {[%emt 0:03:08]} 8. O-O {[%emt 0:01:33]} Be6 {[%emt 0:00:55]} 9. Rb1 {[%emt 0:04:11]} d5 {[%emt 0:05:05]} 10. cxd5 {[%emt 0:09:14]} cxd5 {[%emt 0:15:35]} 11. Qb3 {[%emt 0:10:40]} Qd7 {[%emt 0:01:26]} 12. d4 {[%emt 0:00:27]} e4 {[%emt 0:00:17]} 13. Bd2 {[%emt 0:02:36]} Nc6 {[%emt 0:00:14]} 14. Na4 {[%emt 0:02:16]} b6 {[%emt 0:05:18]} 15. Rfc1 {[%emt 0:02:45]} Rfc8 {[%emt 0:00:51]} 16. Nf4 {[%emt 0:03:53]} Bf7 {[%emt 0:06:30]} 17. Bf1 {[%emt 0:02:11]} g5 {[%emt 0:05:04]} 18. Ng2 {[%emt 0:02:24]} Ne8 {[%emt 0:01:55]} 19. Ba6 {[%emt 0:08:20]} Rc7 {[%emt 0:00:43]} 20. a3 {[%emt 0:04:41]} Nd6 {[%emt 0:00:51]} 21. Qd1 {[%emt 0:03:58]} Nc4 {[%emt 0:09:09]} 22. Nc3 {[%emt 0:03:40]} N6a5 {[%emt 0:10:01]} 23. Nb5 {[%emt 0:08:11]} Rc6 {[%emt 0:00:29]} 24. Bb4 {[%emt 0:03:03]} Bxb4 {[%emt 0:10:42]} 25. axb4 {[%emt 0:00:41]} f4 {[%emt 0:03:02]} 26. exf4 {[%emt 0:02:54]} Nb3 {[%emt 0:06:30]} 27. Rc2 {[%emt 0:04:28]} e3 {[%emt 0:00:51]} 28. Nxe3 {[%emt 0:01:38]} gxf4 {[%emt 0:04:20]} 29. Qg4+ {[%emt 0:02:05]} Qxg4 {[%emt 0:00:06]} 30. Nxg4 {[%emt 0:00:01]} Rb8 {[%emt 0:01:33]} 31. Nxa7 {[%emt 0:02:56]} Re6 {[%emt 0:01:33]} 32. Bxc4 {[%emt 0:01:09]} dxc4 {[%emt 0:00:03]} 33. Rd1 {[%emt 0:01:03]} h5 {[%emt 0:03:57]} 34. Ne5 {[%emt 0:00:46]} Nxd4 {[%emt 0:00:15]} 35. Rxd4 {[%emt 0:00:45]} Rxe5 {[%emt 0:00:05]} 36. Nc6 {[%emt 0:01:39]} Re1+ {[%emt 0:00:01]} 37. Kg2 {[%emt 0:00:07]} Ra8 {[%emt 0:01:44]} 38. gxf4 {[%emt 0:01:05]} Kh8 {[%emt 0:00:17]} 39. Rc3 {[%emt 0:03:05]} h4 {[%emt 0:00:28]} 40. f5 {[%emt 0:00:00]} Rg8+ {[%emt 0:00:00]} 41. Kh3 {[%emt 0:02:33]} Kg7 {[%emt 0:03:25]} 42. Re3 {[%emt 0:05:04]} Rf1 {[%emt 0:01:55]} 43. f6+ {[%emt 0:01:11]} Kxf6 {[%emt 0:00:58]} 44. Rf4+ {[%emt 0:00:06]} Kg7 {[%emt 0:00:18]} 45. Re7 {[%emt 0:00:08]} 1-0

[Event "VII Totalizator Sportowy 2022"]
[Site "Bydgoszcz"]
[Date "2022.07.03"]
[Round "9.19"]
[White "Kolodziejski, Piotr"]
[Black "Jarocka, Liwia"]
[Result "1/2-1/2"]
[ECO "B15"]
[WhiteElo "2107"]
[BlackElo "2006"]
[Annotator "RC"]
[PlyCount "113"]
[EventDate "2022.06.25"]
[EventType "swiss"]
[EventCountry "POL"]
[SourceTitle "playchess.com"]
[Source "ChessBase"]
[SourceQuality "1"]
[TimeControl "40/5400+30:1800+30"]

1. e4 {[%emt 0:00:03]} c6 {[%emt 0:00:11]} 2. d4 {[%emt 0:01:08]} d5 {[%emt 0:00:08]} 3. Nc3 {[%emt 0:00:07]} dxe4 {[%emt 0:00:10]} 4. Nxe4 {[%emt 0:00:06]} Nf6 {[%emt 0:00:06]} 5. Nxf6+ {[%emt 0:00:05]} exf6 {[%emt 0:00:06]} 6. c3 {[%emt 0:01:38]} Bd6 {[%emt 0:00:38]} 7. Bd3 {[%emt 0:01:14]} O-O {[%emt 0:00:19]} 8. Qc2 {[%emt 0:00:40]} Re8+ {[%emt 0:00:09]} 9. Ne2 {[%emt 0:00:08]} h5 {[%emt 0:00:24]} 10. Bd2 {[%emt 0:01:11]} Nd7 {[%emt 0:02:24]} 11. O-O-O {[%emt 0:01:04]} Nf8 {[%emt 0:01:42]} 12. Ng3 {[%emt 0:08:26]} g6 {[%emt 0:04:01]} 13. Ne4 {[%emt 0:04:10]} Be6 {[%emt 0:10:10]} 14. Kb1 {[%emt 0:09:23]} Be7 {[%emt 0:05:48]} 15. Be3 {[%emt 0:37:53]} b5 {[%emt 0:00:30]} 16. f3 {[%emt 0:00:30]} f5 {[%emt 0:00:30]} 17. Nd2 {[%emt 0:00:30]} Qd5 {[%emt 0:00:30]} 18. c4 {[%emt 0:00:30]} bxc4 {[%emt 0:00:30]} 19. Bxc4 {[%emt 0:00:30]} Qd7 {[%emt 0:00:30]} 20. Rhe1 {[%emt 0:00:30]} Bb4 {[%emt 0:00:30]} 21. Re2 {[%emt 0:00:30]} Bxd2 {[%emt 0:00:30]} 22. Rdxd2 {[%emt 0:00:30]} Rab8 {[%emt 0:00:30]} 23. Bf4 {[%emt 0:00:30]} Rb4 {[%emt 0:00:30]} 24. Bxe6 {[%emt 0:00:30]} Nxe6 {[%emt 0:00:30]} 25. Qc3 {[%emt 0:00:30]} Rb5 {[%emt 0:00:30]} 26. Be5 {[%emt 0:00:30]} Rd5 {[%emt 0:00:30]} 27. Bf6 {[%emt 0:00:30]} Nc7 {[%emt 0:00:30]} 28. Rxe8+ {[%emt 0:00:30]} Nxe8 {[%emt 0:00:30]} 29. Bh4 {[%emt 0:00:30]} Nc7 {[%emt 0:00:30]} 30. Bf6 {[%emt 0:00:30]} f4 {[%emt 0:00:30]} 31. Rc2 {[%emt 0:00:30]} c5 {[%emt 0:00:30]} 32. a4 {[%emt 0:00:30]} Ne8 {[%emt 0:00:30]} 33. Bh4 {[%emt 0:00:30]} cxd4 {[%emt 0:00:30]} 34. Qb3 {[%emt 0:00:30]} d3 {[%emt 0:00:30]} 35. Rd2 {[%emt 0:00:30]} g5 {[%emt 0:00:30]} 36. Bf2 {[%emt 0:00:30]} a5 {[%emt 0:00:30]} 37. h4 {[%emt 0:00:30]} g4 {[%emt 0:00:30]} 38. Qc4 {[%emt 0:00:30]} g3 {[%emt 0:00:30]} 39. Bb6 Qe6 40. Ka2 {[%emt 0:01:00]} Nd6 {[%emt 0:35:50]} 41. Qb3 {[%emt 0:31:37]} Nf5 {[%emt 0:32:12]} 42. Bc7 {[%emt 0:01:39]} Nd4 {[%emt 0:15:55]} 43. Qc4 {[%emt 0:01:47]} Ne2 {[%emt 0:00:42]} 44. Kb1 {[%emt 0:02:54]} Qd7 {[%emt 0:04:38]} 45. Bb6 {[%emt 0:01:07]} Qf5 {[%emt 0:02:37]} 46. Ka1 {[%emt 0:06:11]} Rd6 {[%emt 0:01:00]} 47. Ba7 {[%emt 0:05:59]} Qd7 {[%emt 0:01:24]} 48. Bc5 {[%emt 0:03:32]} Rd5 {[%emt 0:00:24]} 49. b3 {[%emt 0:01:25]} Qf5 {[%emt 0:00:43]} 50. Ba3 {[%emt 0:01:26]} Nd4 {[%emt 0:03:47]} 51. Bb2 {[%emt 0:01:08]} Nc2+ {[%emt 0:00:31]} 52. Kb1 {[%emt 0:00:53]} Ne3 {[%emt 0:04:41]} 53. Qc6 {[%emt 0:00:31]} f6 {[%emt 0:02:03]} 54. Qe8+ {[%emt 0:01:30]} Kg7 {[%emt 0:00:04]} 55. Qe7+ {[%emt 0:00:12]} Kg6 {[%emt 0:00:43]} 56. Qe8+ {[%emt 0:00:23]} Kg7 {[%emt 0:00:02]} 57. Qe7+ {[%emt 0:01:24]} 1/2-1/2

[Event "VII Totalizator Sportowy 2022"]
[Site "Bydgoszcz"]
[Date "2022.07.03"]
[Round "9.20"]
[White "Dubnevych, Maksym"]
[Black "Skurniak, Szymon"]
[Result "1/2-1/2"]
[ECO "C41"]
[WhiteElo "2048"]
[BlackElo "1960"]
[Annotator "NA RC"]
[PlyCount "51"]
[EventDate "2022.06.25"]
[EventType "swiss"]
[EventCountry "POL"]
[SourceTitle "playchess.com"]
[Source "ChessBase"]
[SourceQuality "1"]
[TimeControl "40/5400+30:1800+30"]

1. e4 {[%emt 0:00:04]} d6 {[%emt 0:00:10]} 2. d4 {[%emt 0:02:40]} Nf6 {[%emt 0:00:54]} 3. Nc3 {[%emt 0:00:01]} e5 {[%emt 0:00:16]} 4. Nf3 {[%emt 0:03:02]} Nbd7 {[%emt 0:00:35]} 5. Be2 {[%emt 0:01:04]} c6 {[%emt 0:00:13]} 6. O-O {[%emt 0:01:41]} Be7 {[%emt 0:13:50]} 7. h3 {[%emt 0:00:18]} b5 {[%emt 0:01:26]} 8. a3 {[%emt 0:00:32]} Bb7 {[%emt 0:02:11]} 9. b4 {[%emt 0:14:35]} O-O {[%emt 0:02:02]} 10. Bg5 {[%emt 0:27:14]} h6 {[%emt 0:13:22]} 11. Bxf6 {[%emt 0:00:38]} Bxf6 {[%emt 0:00:47]} 12. d5 {[%emt 0:00:18]} cxd5 {[%emt 0:04:23]} 13. Nxd5 {[%emt 0:00:01]} Nb6 {[%emt 0:06:12]} 14. Nxf6+ {[%emt 0:11:43]} Qxf6 {[%emt 0:00:02]} 15. Nd2 {[%emt 0:00:22]} a6 {[%emt 0:19:32]} 16. c4 {[%emt 0:10:28]} bxc4 {[%emt 0:01:01]} 17. Bxc4 {[%emt 0:06:54]} Rac8 {[%emt 0:05:12]} 18. Qe2 {[%emt 0:01:35]} Nxc4 {[%emt 0:04:42]} 19. Nxc4 {[%emt 0:00:29]} Qg6 {[%emt 0:03:16]} 20. f3 {[%emt 0:01:47]} f5 {[%emt 0:01:47]} 21. exf5 {[%emt 0:03:29]} Rxf5 {[%emt 0:00:09]} 22. Rad1 {[%emt 0:01:09]} Rd8 {[%emt 0:05:55]} 23. Ne3 {[%emt 0:03:20]} Rf7 {[%emt 0:04:33]} 24. Nc4 {[%emt 0:01:59]} Rf5 {[%emt 0:01:50]} 25. Ne3 {[%emt 0:00:04]} Rf7 {[%emt 0:00:46]} 26. Nc4 {[%emt 0:00:29]} 1/2-1/2

[Event "VII Totalizator Sportowy 2022"]
[Site "Bydgoszcz"]
[Date "2022.07.03"]
[Round "9.21"]
[White "Zaninotto, Franco"]
[Black "Sliwicki, Damian"]
[Result "0-1"]
[ECO "B01"]
[WhiteElo "2069"]
[BlackElo "2168"]
[Annotator "RC"]
[PlyCount "67"]
[EventDate "2022.06.25"]
[EventType "swiss"]
[EventCountry "POL"]
[SourceTitle "playchess.com"]
[Source "ChessBase"]
[SourceQuality "1"]
[TimeControl "40/5400+30:1800+30"]

1. e4 {[%emt 0:00:03]} d5 {[%emt 0:03:19]} 2. exd5 {[%emt 0:00:39]} Qxd5 {[%emt 0:00:03]} 3. Nc3 {[%emt 0:00:06]} Qa5 {[%emt 0:00:03]} 4. d4 {[%emt 0:00:12]} Nf6 {[%emt 0:00:06]} 5. Bd2 {[%emt 0:00:27]} Bg4 {[%emt 0:02:06]} 6. Nf3 {[%emt 0:00:28]} Qb6 {[%emt 0:01:05]} 7. h3 {[%emt 0:08:44]} Bh5 {[%emt 0:11:53]} 8. Bc4 {[%emt 0:10:05]} e6 {[%emt 0:02:35]} 9. Qe2 {[%emt 0:13:44]} Bxf3 {[%emt 0:10:28]} 10. Qxf3 {[%emt 0:00:47]} Nc6 {[%emt 0:00:54]} 11. Bb5 {[%emt 0:08:43]} O-O-O {[%emt 0:04:05]} 12. Bxc6 {[%emt 0:00:23]} Qxc6 {[%emt 0:00:09]} 13. Qxc6 {[%emt 0:00:33]} bxc6 {[%emt 0:00:01]} 14. Be3 {[%emt 0:04:15]} Bb4 {[%emt 0:05:55]} 15. Ke2 {[%emt 0:12:02]} c5 {[%emt 0:03:18]} 16. dxc5 {[%emt 0:03:42]} Bxc3 {[%emt 0:00:29]} 17. bxc3 {[%emt 0:00:05]} Ne4 {[%emt 0:01:57]} 18. c4 {[%emt 0:05:28]} a6 {[%emt 0:06:20]} 19. a4 {[%emt 0:00:28]} f5 {[%emt 0:02:46]} 20. Ra3 {[%emt 0:12:50]} e5 {[%emt 0:00:49]} 21. Rd3 {[%emt 0:06:30]} f4 {[%emt 0:00:23]} 22. Kf3 {[%emt 0:03:35]} Ng5+ {[%emt 0:23:49]} 23. Kg4 {[%emt 0:00:09]} fxe3 {[%emt 0:04:39]} 24. Kxg5 {[%emt 0:02:21]} Rxd3 {[%emt 0:00:13]} 25. cxd3 {[%emt 0:00:06]} exf2 {[%emt 0:00:03]} 26. Rf1 {[%emt 0:01:13]} Rf8 {[%emt 0:00:04]} 27. Kg4 {[%emt 0:02:12]} Kd7 {[%emt 0:00:06]} 28. Kg3 {[%emt 0:00:09]} Kc6 {[%emt 0:00:04]} 29. Rxf2 {[%emt 0:00:03]} Rxf2 {[%emt 0:00:18]} 30. Kxf2 {[%emt 0:00:04]} Kxc5 {[%emt 0:00:03]} 31. Ke3 {[%emt 0:00:42]} Kb4 {[%emt 0:00:21]} 32. Ke4 {[%emt 0:00:04]} Kxa4 {[%emt 0:00:07]} 33. Kxe5 {[%emt 0:00:06]} Kb4 {[%emt 0:00:08]} 34. Kd4 0-1